bitfinex/quotes_SOLUSD_20250814
["timestamp","ask_amount","ask_price","bid_price","bid_amount"]
[1755137496273,146.51329536,202.51,199.79,181.98063048]
[1755137496878,146.51329536,202.51,199.8,0.18867748]
[1755137497188,146.51329536,202.51,199.81,30.28013251]
[1755137498140,146.51329536,202.51,200.69,72.38395394]
[1755137498342,25.58347759,202.82,202.2,24.43664461]
[1755137498343,146.51329536,202.5,202.2,24.43664461]
[1755137498464,146.51329536,202.49,202.2,24.43664461]
[1755137498672,24.31142845,202.81,202.19,44.26972186]
[1755137498673,146.51329536,202.48,202.21,24.69864622]
[1755137498851,137.90556161,202.48,202.2,24.43664461]
[1755137499183,137.90556161,202.47,202.2,24.43664461]
[1755137499782,137.90556161,202.46,202.2,24.43664461]
[1755137500400,113.73366589,202.46,202.09,24.35928304]
[1755137500575,113.73366589,202.45,202.09,24.35928304]
[1755137501455,89.12794566,202.45,202.09,24.35928304]
[1755137501679,237.7,202.77,202.09,24.35928304]
[1755137501680,89.12794566,202.44,202.09,24.35928304]
[1755137501865,89.05403867,202.43,202.09,24.35928304]
[1755137502480,64.80876498,202.43,201.73,24.04391465]
[1755137502691,40.35756379,202.42,202.11,24.93477648]
[1755137502891,15.81545428,202.41,202.11,24.93477648]
[1755137504464,15.81545428,202.4,202.11,24.93477648]
[1755137504785,9.74003833,202.4,202.11,24.93477648]
[1755137504984,1e-08,202.4,202.11,24.93477648]
[1755137505375,1e-08,202.4,202.11,25.00791295]
[1755137506576,1e-08,202.4,201.67,25.0187703]
[1755137506863,237.7,202.77,201.67,25.0187703]
[1755137507065,146.7,202.76,201.67,25.0187703]
[1755137508297,150.36941803,202.75,201.67,25.0187703]
[1755137508469,3.66941803,202.74,201.67,25.0187703]
[1755137508670,146.7,202.73,201.68,1.47010963]
[1755137508863,146.7,202.73,201.69,25.10661339]
[1755137509074,3.66992157,202.72,201.69,25.10661339]
[1755137509388,146.62609301,202.71,201.69,25.10661339]
[1755137511165,150.29740348,202.7,201.69,25.10661339]
[1755137511367,3.67131047,202.69,201.69,25.10661339]
[1755137512564,146.62609301,202.68,201.69,25.10661339]
[1755137513476,4.15028642,202.88,201.69,25.10661339]
[1755137513477,146.62609301,202.67,201.69,25.10661339]
[1755137513678,146.62609301,202.66,201.69,25.10661339]
[1755137514189,146.62609301,202.66,201.69,69.37633525]
[1755137515162,146.62609301,202.65,201.69,69.37633525]
[1755137516093,146.62609301,202.65,201.9,44.26972186]
[1755137516293,146.62609301,202.64,201.91,26.15230305]
[1755137516478,146.62609301,202.64,201.92,1.23612129]
[1755137516682,146.62609301,202.64,201.93,24.36535561]
[1755137517389,146.62609301,202.64,201.93,27.21594944]
[1755137518677,146.62609301,202.63,201.93,27.21594944]
[1755137520179,146.62609301,202.63,201.98,24.05669082]
[1755137520367,146.62609301,202.62,201.98,25.02361748]
[1755137520585,146.55218602,202.62,201.98,25.02361748]
[1755137524105,146.55218602,202.61,201.98,25.02361748]
[1755137525178,146.55218602,202.6,201.98,25.02361748]
[1755137527701,122.40889996,202.6,201.98,25.02361748]
[1755137527908,98.2656139,202.59,201.98,25.02361748]
[1755137528208,73.46274961,202.58,201.98,25.02361748]
[1755137528387,73.46274961,202.57,201.98,25.02361748]
[1755137528583,237.69757984,202.96,201.98,25.02361748]
[1755137528899,3.66125571,202.95,201.98,25.02361748]
[1755137529083,3.66125571,202.94,201.98,25.02361748]
[1755137529285,3.66125571,202.93,201.98,25.02361748]
[1755137529604,3.66125571,202.92,201.98,25.02361748]
[1755137529803,3.66125571,202.91,201.98,25.02361748]
[1755137529989,3.66125571,202.9,201.98,25.02361748]
[1755137530301,4.922661,203.15,201.98,25.02361748]
[1755137530485,146.7,202.9,201.98,25.02361748]
[1755137530682,146.7,202.89,201.98,25.02361748]
[1755137535818,4.92244633,203.16,201.98,25.02361748]
[1755137535819,146.7,202.88,201.98,25.02361748]
[1755137540493,24.29399084,203.17,201.98,25.02361748]
[1755137540494,146.7,202.87,201.98,25.02361748]
[1755137544826,146.7,202.86,201.98,25.02361748]
[1755137545710,146.7,202.85,201.98,25.02361748]
[1755137548514,146.7,202.84,201.98,25.02361748]
[1755137548830,146.7,202.83,201.98,25.02361748]
[1755137549197,4.11988158,203.1,201.98,25.02361748]
[1755137549198,146.7,202.82,201.98,25.02361748]
[1755137549400,146.7,202.81,201.98,25.02361748]
[1755137550115,146.7,202.8,201.98,25.02361748]
[1755137553519,28.80910491,203.05,201.98,25.02361748]
[1755137553520,146.7,202.79,201.98,25.02361748]
[1755137554529,146.7,202.78,201.98,25.02361748]
[1755137555216,146.7,202.77,201.98,25.02361748]
[1755137555417,146.7,202.76,201.98,25.02361748]
[1755137556532,146.7,202.75,201.98,25.02361748]
[1755137562021,146.7,202.74,201.98,25.02361748]
[1755137562222,146.7,202.73,201.98,25.02361748]
[1755137562624,146.7,202.72,201.98,25.02361748]
[1755137562825,146.7,202.71,201.98,25.02361748]
[1755137563032,145.80796057,202.71,201.98,25.02361748]
[1755137563236,145.80796057,202.7,201.98,25.02361748]
[1755137567128,145.80796057,202.69,201.98,25.02361748]
[1755137567751,237.69757984,203.03,201.98,25.02361748]
[1755137567752,145.80796057,202.68,201.98,25.02361748]
[1755137567930,145.66014294,202.67,201.98,25.02361748]
[1755137569948,145.66014294,202.67,201.99,50.21061002]
[1755137570340,145.66014294,202.67,202.0,30.09922891]
[1755137571348,145.5862323,202.66,202.0,30.09922891]
[1755137572053,145.5862323,202.66,202.01,50.21002184]
[1755137572234,145.5862323,202.66,202.02,30.11080562]
[1755137572635,145.51232531,202.66,202.02,30.11080562]
[1755137573844,145.51232531,202.66,202.04,44.26972186]
[1755137574148,145.51232531,202.65,202.05,30.31979767]
[1755137576959,145.51232531,202.64,202.05,30.31979767]
[1755137580361,145.51232531,202.63,202.05,30.31979767]
[1755137583051,145.51232531,202.62,202.05,30.31979767]
[1755137583350,145.51232531,202.61,202.05,30.31979767]
[1755137583549,90.1713097,202.61,202.05,30.31979767]
[1755137583753,1e-08,202.6,202.05,30.31979767]
[1755137588261,119.33594273,202.59,202.05,30.31979767]
[1755137589166,119.33594273,202.58,202.05,30.31979767]
[1755137589664,119.33594273,202.57,202.05,30.31979767]
[1755137589840,119.33594273,202.56,202.05,30.31979767]
[1755137592563,119.33594273,202.55,202.05,30.31979767]
[1755137592868,1e-08,202.6,201.74,30.70533924]
[1755137592869,70.87883804,202.54,201.74,30.70533924]
[1755137593040,1e-08,202.6,201.74,30.70533924]
[1755137593041,70.87883804,202.53,201.74,30.70533924]
[1755137593237,1e-08,202.6,201.74,30.70533924]
[1755137593238,70.87883804,202.52,201.74,30.70533924]
[1755137593439,70.87883804,202.51,201.74,30.70533924]
[1755137593672,70.87883804,202.5,201.74,30.70533924]
[1755137594266,1.61380359,202.49,201.74,30.70533924]
[1755137594474,70.87883804,202.48,201.74,30.70533924]
[1755137594848,70.87883804,202.48,201.93,24.36535561]
[1755137595949,70.87883804,202.48,201.93,25.83616232]
[1755137596677,1.61380359,202.47,201.93,25.83616232]
[1755137596849,68.51014163,202.48,201.93,25.83616232]
[1755137600068,68.45812079,202.48,201.93,25.83616232]
[1755137600246,68.45812079,202.47,201.93,25.83616232]
[1755137600446,43.91498693,202.46,201.93,25.83616232]
[1755137600660,1e-08,202.45,201.93,25.83616232]
[1755137601064,237.69757984,202.79,202.68,7.72629998]
[1755137601250,237.69757984,203.12,202.68,7.72629998]
[1755137601465,10.23064813,203.11,202.68,7.72629998]
[1755137601664,10.23064813,203.1,202.68,7.72629998]
[1755137601858,4.11988158,203.17,202.68,7.72629998]
[1755137601859,10.23064813,203.09,202.68,7.72629998]
[1755137602165,10.23064813,203.08,202.68,7.72629998]
[1755137602373,10.23064813,203.07,202.68,7.72629998]
[1755137602571,10.23064813,203.06,202.68,7.72629998]
[1755137602777,10.23064813,203.05,202.68,7.72629998]
[1755137602975,10.23064813,203.04,202.68,7.72629998]
[1755137603178,10.23064813,203.03,202.68,7.72629998]
[1755137603358,8.40302101,203.02,202.68,7.72629998]
[1755137603672,5.11310787,203.01,202.68,7.72629998]
[1755137603881,3.65489126,203.0,202.68,7.72629998]
[1755137604079,3.65489126,202.99,202.68,7.72629998]
[1755137604376,3.65489126,202.98,202.68,7.72629998]
[1755137604574,3.65489126,202.97,202.68,7.72629998]
[1755137604772,3.65489126,202.96,202.68,7.72629998]
[1755137605073,3.65489126,202.95,202.68,7.72629998]
[1755137605252,3.65489126,202.94,202.68,7.72629998]
[1755137605452,3.65489126,202.93,202.68,7.72629998]
[1755137605653,3.65489126,202.92,202.68,7.72629998]
[1755137605874,4.11988158,203.15,202.68,7.72629998]
[1755137606074,6.94517725,203.14,202.68,7.72629998]
[1755137606284,6.94517725,203.13,202.68,7.72629998]
[1755137606456,6.94517725,203.12,202.68,7.72629998]
[1755137606771,6.94517725,203.11,202.68,7.72629998]
[1755137606998,6.94517725,203.1,202.68,7.72629998]
[1755137607153,6.94517725,203.09,201.74,30.69990438]
[1755137607355,6.94517725,203.08,202.39,24.26522565]
[1755137607551,6.94517725,203.07,201.74,30.69990438]
[1755137607772,6.94517725,203.06,201.74,30.69990438]
[1755137607963,5.11646502,203.05,201.74,30.69990438]
[1755137608162,3.65743478,203.04,201.74,30.69990438]
[1755137608380,3.65743478,203.03,201.74,30.69990438]
[1755137608572,8.21133888,203.2,201.74,30.69990438]
[1755137608573,3.65743478,203.02,201.74,30.69990438]
[1755137608750,3.65743478,203.01,201.74,30.69990438]
[1755137608951,3.65743478,203.0,201.74,30.69990438]
[1755137609156,3.65743478,202.99,201.75,44.26972186]
[1755137609357,3.65743478,202.98,201.75,50.21767725]
[1755137609560,3.65743478,202.97,201.75,50.21767725]
[1755137609774,3.65743478,202.96,201.76,30.0580767]
[1755137609982,3.65743478,202.95,201.77,8.11250687]
[1755137610169,3.28991314,203.19,201.77,8.11250687]
[1755137610371,4.92128416,203.2,201.77,8.11250687]
[1755137610372,6.94582224,203.18,201.77,8.11250687]
[1755137610667,6.94582224,203.17,201.77,8.11250687]
[1755137610867,6.94582224,203.16,201.78,29.9545111]
[1755137611067,6.94582224,203.15,201.78,29.9545111]
[1755137611275,6.94582224,203.14,201.78,29.9545111]
[1755137611476,6.94582224,203.13,201.78,29.9545111]
[1755137611671,3.28991314,203.18,201.78,29.9545111]
[1755137611672,6.94582224,203.12,201.78,29.9545111]
[1755137611878,6.94582224,203.11,201.78,29.9545111]
[1755137612180,6.94582224,203.1,201.78,29.9545111]
[1755137612382,6.94582224,203.09,201.78,29.9545111]
[1755137612682,1e-08,202.36,201.78,29.9545111]
[1755137612892,1e-08,202.36,201.8,30.40194323]
[1755137614689,237.69757984,202.72,201.8,30.40194323]
[1755137614889,15.82511689,202.36,201.8,30.40194323]
[1755137615090,227.55006192,202.72,201.8,30.40194323]
[1755137615291,117.07369966,202.36,201.8,30.40194323]
[1755137615588,113.89159966,202.36,201.8,30.40194323]
[1755137615891,1e-08,202.36,201.82,30.28391771]
[1755137617975,146.7,202.7,201.82,30.28391771]
[1755137618180,24.18703846,202.96,201.81,2.16514106]
[1755137618181,146.7,202.69,202.37,24.22561664]
[1755137618378,227.55006192,203.04,202.37,24.22561664]
[1755137618379,146.7,202.68,202.37,24.22561664]
[1755137620173,145.71,202.68,202.37,24.22561664]
[1755137620374,145.71,202.68,201.67,30.40101511]
[1755137620577,145.71,202.67,201.67,30.40101511]
[1755137620886,145.71,202.66,201.67,30.40101511]
[1755137621770,145.71,202.65,201.67,30.40101511]
[1755137622069,145.71,202.65,201.68,2.16514106]
[1755137622398,145.71,202.64,201.69,30.13851595]
[1755137624881,145.71,202.64,201.7,8.1145709]
[1755137626497,145.71,202.64,201.71,30.11780477]
[1755137627098,145.71,202.64,201.76,44.26972186]
[1755137627398,145.71,202.63,201.76,48.82086389]
[1755137627702,145.71,202.63,201.77,29.14616302]
[1755137627989,145.71,202.63,201.78,6.71583199]
[1755137628195,145.71,202.62,201.79,29.39507163]
[1755137628397,128.47733899,202.61,201.79,29.39507163]
[1755137629387,111.17076778,202.6,201.79,29.39507163]
[1755137629590,111.17076778,202.59,201.79,29.39507163]
[1755137629896,111.17076778,202.58,201.79,29.39507163]
[1755137630093,86.88434032,202.57,201.79,29.39507163]
[1755137630302,86.45536963,202.57,201.79,29.39507163]
[1755137630499,0.83422643,202.57,201.79,29.39507163]
[1755137631073,0.83422643,202.57,201.65,44.26972186]
[1755137631074,0.76031944,202.57,201.81,29.97087695]
[1755137633387,146.7,202.56,201.81,29.97087695]
[1755137633699,61.07516535,202.56,201.81,29.97087695]
[1755137634075,61.07516535,202.56,201.82,2.16514106]
[1755137634274,61.07516535,202.56,201.83,30.26425948]
[1755137634997,72.85763001,202.55,201.83,30.26425948]
[1755137635173,72.77592238,202.55,201.83,30.26425948]
[1755137637008,72.77592238,202.55,201.84,2.16514106]
[1755137637291,146.7,202.54,201.84,8.11044427]
[1755137637500,146.7,202.54,201.85,30.30254778]
[1755137640009,146.7,202.54,201.86,2.16514106]
[1755137640184,72.77592238,202.55,201.86,2.16514106]
[1755137640185,146.7,202.53,201.86,8.10985521]
[1755137640699,85.95548053,202.52,201.87,25.31561904]
[1755137640905,61.58834213,202.52,201.87,25.31561904]
[1755137641789,4.92395008,203.09,201.87,25.31561904]
[1755137641989,12.47229158,203.04,201.87,25.31561904]
[1755137642206,12.47229158,203.03,201.87,25.31561904]
[1755137642394,12.47229158,203.02,201.87,25.31561904]
[1755137642600,12.47229158,203.01,201.87,25.31561904]
[1755137642783,12.47229158,203.0,201.87,25.31561904]
[1755137642986,12.47229158,202.99,201.89,27.26664615]
[1755137643192,12.47229158,202.98,201.89,27.26664615]
[1755137643492,12.47229158,202.97,201.89,27.26664615]
[1755137643804,10.63818446,202.96,201.89,27.26664615]
[1755137644002,6.96997022,202.95,201.89,27.26664615]
[1755137644207,150.36821424,202.94,201.89,27.26664615]
[1755137644390,6.96997022,202.93,201.89,27.26664615]
[1755137644587,3.66821424,202.92,201.89,27.26664615]
[1755137644904,3.66821424,202.91,201.89,27.26664615]
[1755137645099,3.66821424,202.9,201.89,27.26664615]
[1755137645281,150.36821424,202.89,201.89,27.26664615]
[1755137645599,3.66821424,202.88,201.89,27.26664615]
[1755137645902,3.66821424,202.87,201.89,27.26664615]
[1755137646102,3.66821424,202.86,201.91,29.96810752]
[1755137646309,3.66821424,202.85,201.91,29.96810752]
[1755137646485,146.7,202.84,201.91,29.96810752]
[1755137647206,146.7,202.83,201.91,29.96810752]
[1755137647383,146.7,202.82,201.91,29.96810752]
[1755137648702,146.7,202.81,201.91,29.96810752]
[1755137649203,146.7,202.81,201.92,8.10808876]
[1755137649583,146.7,202.81,201.93,30.2425609]
[1755137651314,146.7,202.81,201.99,29.98635755]
[1755137651513,146.7,202.8,201.99,29.98635755]
[1755137654016,146.7,202.79,201.99,29.98635755]
[1755137657191,146.7,202.78,201.99,29.98635755]
[1755137658008,146.7,202.77,201.99,29.98635755]
[1755137659013,146.7,202.77,202.01,50.21002184]
[1755137659317,146.7,202.77,202.02,24.07527898]
[1755137659520,146.7,202.77,202.02,30.01528491]
[1755137662127,146.7,202.76,202.02,30.01528491]
[1755137662291,146.7,202.75,202.02,30.01528491]
[1755137662492,146.7,202.74,202.02,30.01528491]
[1755137665324,146.7,202.73,202.02,30.01528491]
[1755137665522,146.7,202.72,202.02,30.01528491]
[1755137665728,237.7,203.08,202.02,30.01528491]
[1755137665729,146.7,202.71,202.02,30.01528491]
[1755137665913,146.7,202.7,202.02,30.01528491]
[1755137668910,146.7,202.69,202.02,30.01528491]
[1755137670831,146.7,202.68,202.02,30.01528491]
[1755137674928,146.7,202.67,202.02,30.01528491]
[1755137675129,146.7,202.66,202.02,30.01528491]
[1755137677120,146.7,202.65,202.02,30.01528491]
[1755137678429,142.85485571,202.65,202.02,30.01528491]
[1755137680813,142.85485571,202.64,202.02,30.01528491]
[1755137682837,142.85485571,202.63,202.02,30.01528491]
[1755137683135,142.78094802,202.62,202.02,30.01528491]
[1755137683310,142.78094802,202.61,202.02,30.01528491]
[1755137683508,142.78094802,202.6,202.02,30.01528491]
[1755137686838,142.78094802,202.59,202.02,30.01528491]
[1755137690339,142.78094802,202.58,202.02,30.01528491]
[1755137692323,142.78094802,202.57,202.02,30.01528491]
[1755137692724,142.78094802,202.56,202.02,30.01528491]
[1755137692925,142.78094802,202.55,202.02,30.01528491]
[1755137693435,142.78094802,202.54,202.02,30.01528491]
[1755137694626,4.11988158,202.92,202.02,30.01528491]
[1755137694627,142.78094802,202.53,202.02,30.01528491]
[1755137698626,142.78094802,202.52,202.02,30.01528491]
[1755137701448,142.78094802,202.51,202.02,30.01528491]
[1755137701634,142.78094802,202.5,202.02,30.01528491]
[1755137702033,142.78094802,202.49,202.02,30.01528491]
[1755137702229,142.78094802,202.49,202.02,24.07527898]
[1755137702443,142.78094802,202.48,201.93,24.29990751]
[1755137702641,142.78094802,202.47,201.93,24.29990751]
[1755137703638,142.78094802,202.47,201.8,30.40194323]
[1755137703844,142.78094802,202.46,201.8,117.80194323]
[1755137706358,142.78094802,202.46,201.81,7.51690634]
[1755137706558,142.78094802,202.46,201.82,30.28391771]
[1755137707448,142.78094802,202.45,201.82,264.58391771]
[1755137707754,142.78094802,202.44,201.82,117.68391771]
[1755137709253,142.78094802,202.44,201.84,24.13563113]
[1755137710555,142.78094802,202.43,201.84,24.13563113]
[1755137712258,142.78094802,202.43,201.86,24.42849734]
[1755137712455,142.78094802,202.42,201.86,111.82849734]
[1755137714343,131.88053024,202.42,201.86,117.77321149]
[1755137715364,131.88053024,202.42,201.88,30.73975396]
[1755137715669,131.88053024,202.41,201.88,30.73975396]
[1755137717647,131.88053024,202.4,201.88,30.73975396]
[1755137718357,131.88053024,202.4,201.9,30.21896157]
[1755137719248,131.88053024,202.39,201.9,30.21896157]
[1755137721356,131.88053024,202.39,201.92,24.81604496]
[1755137721557,131.88053024,202.38,201.92,24.81604496]
[1755137722548,131.88053024,202.37,201.92,24.81604496]
[1755137722971,131.88053024,202.36,201.92,24.81604496]
[1755137723371,131.88053024,202.35,201.92,24.81604496]
[1755137723950,131.88053024,202.34,201.92,24.81604496]
[1755137724174,131.88053024,202.33,201.92,24.81604496]
[1755137724367,120.96892303,202.32,201.92,24.81604496]
[1755137724672,24.65654878,202.79,201.92,24.81604496]
[1755137724673,120.96892303,202.31,201.92,24.81604496]
[1755137724861,120.96892303,202.3,201.92,24.81604496]
[1755137725176,120.96892303,202.29,201.92,24.81604496]
[1755137725371,120.96892303,202.28,201.92,24.81604496]
[1755137725666,120.96892303,202.27,201.92,24.81604496]
[1755137726568,120.96892303,202.26,201.92,24.81604496]
[1755137728368,120.96892303,202.25,201.92,24.81604496]
[1755137728573,120.96892303,202.24,201.92,24.81604496]
[1755137728946,99.14570861,202.23,201.92,24.81604496]
[1755137730654,99.14570861,202.22,201.92,24.81604496]
[1755137730857,99.14570861,202.21,201.92,24.81604496]
[1755137731168,88.2341014,202.2,201.92,24.81604496]
[1755137731363,88.2341014,202.19,201.92,24.81604496]
[1755137731564,77.32249419,202.18,201.92,24.81604496]
[1755137731768,237.7,202.64,201.92,24.81604496]
[1755137731971,3.63602257,202.63,201.92,24.81604496]
[1755137732170,150.33602257,202.62,201.92,24.81604496]
[1755137732375,3.63602257,202.61,201.92,24.81604496]
[1755137732568,150.33602257,202.6,201.92,24.81604496]
[1755137732767,3.63602257,202.59,201.92,24.81604496]
[1755137733077,150.33602257,202.58,201.92,24.81604496]
[1755137733276,29.08617681,202.75,201.92,24.81604496]
[1755137733277,150.33602257,202.57,201.92,24.81604496]
[1755137733467,3.63602257,202.56,201.92,24.81604496]
[1755137733774,150.33602257,202.55,201.92,30.75899266]
[1755137734080,4.93145388,202.78,201.92,30.75899266]
[1755137734081,150.33602257,202.54,201.92,30.75899266]
[1755137734279,3.63602257,202.53,201.92,30.75899266]
[1755137734484,150.33602257,202.52,201.92,30.75899266]
[1755137734659,3.63602257,202.51,201.92,30.75899266]
[1755137734858,146.7,202.52,201.92,30.75899266]
[1755137735174,3.63678315,202.51,201.92,30.75899266]
[1755137735367,146.7,202.52,201.92,30.75899266]
[1755137735571,146.7,202.51,201.92,30.75899266]
[1755137737375,146.7,202.5,201.92,30.75899266]
[1755137737677,146.7,202.49,201.92,30.75899266]
[1755137738962,119.87076451,202.48,201.92,30.75899266]
[1755137739180,88.04087545,202.47,201.92,30.75899266]
[1755137739372,34.38239453,202.47,201.92,30.75899266]
[1755137739597,4.9288196,202.89,201.92,30.75899266]
[1755137739784,39.3830382,202.47,201.92,30.75899266]
[1755137739964,4.9288196,202.89,201.92,30.75899266]
[1755137740166,9.10382339,202.88,201.92,30.75899266]
[1755137740364,9.10382339,202.87,201.92,30.75899266]
[1755137740576,9.10382339,202.86,201.92,30.75899266]
[1755137740773,9.10382339,202.85,201.92,30.75899266]
[1755137741089,9.10382339,202.84,201.92,30.75899266]
[1755137741285,61.28538007,202.46,201.92,30.75899266]
[1755137741470,7.63843574,202.45,201.92,30.75899266]
[1755137741799,154.33843574,202.45,201.92,30.75899266]
[1755137742281,29.28469533,202.97,201.92,30.75899266]
[1755137742490,101.08406989,202.45,201.94,30.08835562]
[1755137742680,101.08406989,202.45,201.96,30.29880608]
[1755137742681,47.42559435,202.45,201.96,30.29880608]
[1755137742988,47.42559435,202.45,201.95,0.66]
[1755137742989,24.18703846,202.96,201.98,30.86420765]
[1755137743162,4.92686209,202.97,202.0,24.05068066]
[1755137743163,108.52341963,202.45,202.0,24.05068066]
[1755137743367,108.52341963,202.45,202.02,24.07527898]
[1755137743568,108.52341963,202.45,202.04,24.67379341]
[1755137743785,66.64001291,202.45,202.06,24.69212824]
[1755137743984,41.92881058,202.44,202.08,24.89053496]
[1755137744192,41.92881058,202.43,202.09,0.66]
[1755137744374,24.0947906,202.89,202.1,24.89831383]
[1755137744688,79.94141837,202.88,202.11,0.66]
[1755137744886,24.03884151,202.86,202.12,24.9610785]
[1755137745084,37.52823787,202.85,202.13,0.66]
[1755137745274,37.71970325,202.84,202.14,24.72057706]
[1755137745468,55.03185168,202.83,202.16,24.27476301]
[1755137745673,13.1030411,202.82,202.17,25.0437255]
[1755137745878,6.92545907,202.81,202.19,24.56775152]
[1755137746068,46.2839014,202.8,202.2,0.66]
[1755137746270,4.35509082,202.79,202.2,0.66]
[1755137746477,4.35509082,202.78,202.21,24.26967539]
[1755137746684,3.64509082,202.77,202.21,24.26967539]
[1755137746882,41.92881058,202.8,202.21,24.26967539]
[1755137746883,4.35509082,202.76,202.22,0.66]
[1755137747106,46.2839014,202.75,202.23,24.11439029]
[1755137747285,46.2839014,202.74,202.25,24.38644476]
[1755137747569,46.2839014,202.73,202.25,25.04644476]
[1755137747790,4.35509082,202.72,202.25,25.04644476]
[1755137747966,3.64509082,202.71,202.22,24.49440273]
[1755137748172,46.2839014,202.7,202.22,24.49440273]
[1755137748370,12.3226355,202.88,201.73,234.3]
[1755137748371,46.2839014,202.69,202.23,0.66]
[1755137748573,4.35509082,202.68,202.24,24.99760368]
[1755137748773,3.64509082,202.67,202.24,24.99760368]
[1755137748995,4.35509082,202.66,202.24,24.99760368]
[1755137749191,4.35509082,202.65,201.75,30.71504631]
[1755137749384,46.2839014,202.64,202.26,24.96775237]
[1755137749694,46.2839014,202.63,202.26,24.96775237]
[1755137749893,4.35509082,202.62,202.26,24.96775237]
[1755137750097,41.92881058,202.61,202.26,24.96775237]
[1755137750398,0.71,202.6,202.26,24.96775237]
[1755137750774,0.71,202.6,202.28,24.44828906]
[1755137750978,0.71,202.6,202.27,0.66]
[1755137750979,41.92881058,202.59,202.3,24.81498973]
[1755137751510,0.71,202.58,202.32,24.14085164]
[1755137751677,41.92881058,202.57,202.32,24.14085164]
[1755137751877,0.71,202.56,202.29,24.7347495]
[1755137752072,0.71,202.56,201.77,24.59524656]
[1755137752300,0.71,202.56,201.76,235.87071934]
[1755137752301,0.71,202.56,202.31,24.51882059]
[1755137752499,0.71,202.56,201.77,30.54261237]
[1755137752682,0.71,202.56,202.29,24.7347495]
[1755137752879,0.71,202.56,202.26,24.96775237]
[1755137753080,32.49591757,202.55,202.26,24.96775237]
[1755137753300,0.71,202.54,202.26,24.96775237]
[1755137753574,0.71,202.54,202.24,24.99760368]
[1755137754874,0.71,202.54,202.26,24.96775237]
[1755137755080,0.71,202.54,202.28,24.44828906]
[1755137755693,32.49591757,202.53,202.28,24.44828906]
[1755137755901,0.71,202.52,202.28,24.44828906]
[1755137757600,0.71,202.52,202.26,24.96775237]
[1755137757999,0.71,202.52,202.24,24.99760368]
[1755137758202,32.49591757,202.51,202.24,24.99760368]
[1755137758381,0.71,202.5,202.24,24.99760368]
[1755137758881,0.71,202.5,202.24,25.65760368]
[1755137759082,0.71,202.5,202.26,24.96775237]
[1755137759381,0.71,202.5,202.28,24.44828906]
[1755137759582,0.71,202.5,202.3,24.81498973]
[1755137759779,0.71,202.5,202.32,24.14085164]
[1755137760801,0.71,202.5,202.34,24.77680426]
[1755137761504,0.71,202.5,202.35,24.48835289]
[1755137761685,32.49591757,202.49,202.35,24.48835289]
[1755137761885,0.68,202.48,202.35,24.48835289]
[1755137762277,0.68,202.48,202.36,24.0042468]
[1755137762489,0.68,202.48,202.36,24.6642468]
[1755137762890,0.68,202.48,202.38,24.23960265]
[1755137764719,0.68,202.48,202.37,24.50882582]
[1755137766112,0.68,202.48,202.37,25.16882582]
[1755137766292,0.68,202.48,202.38,0.66]
[1755137766492,0.68,202.48,202.39,24.74244637]
[1755137766692,0.68,202.48,202.41,24.81837185]
[1755137766893,3.28217762,202.83,202.4,24.67256666]
[1755137767107,3.64250398,202.82,202.42,24.23447085]
[1755137767305,3.64250398,202.81,202.42,24.23447085]
[1755137767604,3.64250398,202.8,202.42,24.23447085]
[1755137767805,5.63262669,202.78,202.43,0.66]
[1755137768004,3.64250398,202.77,202.44,24.29059383]
[1755137768189,3.64250398,202.77,202.42,24.23447085]
[1755137768592,3.64250398,202.77,202.44,24.29059383]
[1755137769005,0.68,202.76,202.46,24.4870862]
[1755137769211,3.64250398,202.75,202.46,24.4870862]
[1755137769515,0.68,202.74,202.46,24.4870862]
[1755137769895,0.68,202.74,201.45,30.53458391]
[1755137770100,0.68,202.74,202.47,25.27250148]
[1755137770307,5.63262669,202.87,202.47,25.27250148]
[1755137770510,3.64521939,202.86,202.47,25.27250148]
[1755137770715,3.64521939,202.85,202.47,25.27250148]
[1755137770891,3.64521939,202.84,202.47,25.27250148]
[1755137771093,3.64521939,202.83,202.47,25.27250148]
[1755137771301,3.64521939,202.82,202.47,25.27250148]
[1755137771614,3.64521939,202.81,202.47,24.61250148]
[1755137771915,3.64521939,202.8,202.48,0.66]
[1755137772117,3.64521939,202.79,202.48,0.66]
[1755137772420,4.32521939,202.78,202.48,0.66]
[1755137772619,4.32521939,202.77,202.48,0.66]
[1755137772823,5.63262669,202.75,201.58,30.91604079]
[1755137773022,4.32521939,202.74,202.46,24.4870862]
[1755137773197,5.63262669,202.75,202.45,0.66]
[1755137773198,3.64521939,202.73,202.45,25.31180623]
[1755137773516,5.63262669,202.75,202.45,25.31180623]
[1755137773517,4.32521939,202.72,202.45,25.31180623]
[1755137773724,4.32521939,202.71,202.45,25.31180623]
[1755137774019,4.32521939,202.7,202.45,0.66]